fUSD/lending_fUSD_20250929
["ID","MTS","AMOUNT","RATE_DAILY","PERIOD"]
[388383604,1759140641367,-2300.0,0.000192,7]
[388383606,1759140641377,-385.0,0.000192,2]
[388383608,1759140641387,-687.0,0.00019204,2]
[388383610,1759140641397,-1000.0,0.00019209,2]
[388383612,1759140641407,-1425.0,0.00019217,2]
[388383614,1759140641417,-598.18,0.00019217,2]
[388383616,1759140641427,-500.0,0.00019218,2]
[388383618,1759140641438,-500.0,0.00019218,2]
[388383620,1759140641450,-500.0,0.00019218,2]
[388383623,1759140641461,-150.0,0.00019227,4]
[388383625,1759140641471,-150.0,0.00019227,4]
[388383627,1759140641481,-150.0,0.00019227,4]
[388383629,1759140641491,-1000.0,0.00019231,2]
[388383631,1759140641501,-150.0,0.00019243,2]
[388383633,1759140641512,-1000.0,0.00019244,2]
[388383635,1759140641521,-1567.22735624,0.00019251,2]
[388383637,1759140641531,-1000.0,0.00019259,2]
[388383639,1759140641540,-1090.0,0.00019276,2]
[388383641,1759140641550,-1425.0,0.00019286,2]
[388383643,1759140641561,-1230.0,0.00019288,2]
[388383645,1759140641571,-178.76754661,0.00019288,2]
[388383647,1759140641581,-500.0,0.000193,2]
[388383649,1759140641591,-786.0,0.000193,2]
[388383651,1759140641602,-3100.0,0.000193,7]
[388383654,1759140641613,-243.0,0.000193,2]
[388383656,1759140641622,-150.0,0.00019322,4]
[388383658,1759140641632,-150.0,0.00019324,2]
[388383660,1759140641642,-1496.20792433,0.00019342,2]
[388383662,1759140641651,-1567.22735624,0.00019343,2]
[388383664,1759140641661,-687.0,0.00019351,2]
[388383666,1759140641671,-200.0,0.00019369,2]
[388383668,1759140641683,-200.0,0.00019369,2]
[388383670,1759140641693,-173.9,0.00019371,2]
[388383672,1759140641703,-500.0,0.00019373,2]
[388383674,1759140641712,-826.36818372,0.00019373,2]
[388383676,1759140641722,-925.85867846,0.00019373,2]
[388383678,1759140641732,-153.0,0.00019391,2]
[388383680,1759140641742,-153.0,0.00019391,2]
[388383682,1759140641752,-153.0,0.00019391,2]
[388383684,1759140641761,-153.0,0.00019391,2]
[388383686,1759140641772,-153.0,0.00019391,2]
[388383689,1759140641782,-153.0,0.00019391,2]
[388383691,1759140641792,-153.0,0.00019391,2]
[388383693,1759140641802,-153.0,0.00019391,2]
[388383695,1759140641812,-153.0,0.00019391,2]
[388383697,1759140641823,-153.0,0.00019391,2]
[388383699,1759140641833,-153.0,0.00019391,2]
[388383701,1759140641843,-153.0,0.00019391,2]
[388383703,1759140641853,-153.0,0.00019391,2]
[388383705,1759140641864,-153.0,0.00019391,2]
[388383707,1759140641874,-153.0,0.00019391,2]
[388383709,1759140641884,-153.0,0.00019391,2]
[388383711,1759140641894,-153.0,0.00019391,2]
[388383713,1759140641905,-150.0,0.00019393,4]
[388383716,1759140641920,-820.548,0.00019396,2]
[388383720,1759140641945,-3900.0,0.000194,7]
[388383722,1759140641957,-154.37736682,0.00019403,2]
[388383724,1759140641968,-3177.57150813,0.00019403,2]
[388383726,1759140641978,-646.75093247,0.00019403,2]
[388383728,1759140641988,-151.0,0.00019407,2]
[388383730,1759140641999,-153.0,0.00019408,2]
[388383732,1759140642009,-153.0,0.00019408,2]
[388383735,1759140642020,-153.0,0.00019408,2]
[388383737,1759140642030,-153.0,0.00019408,2]
[388383739,1759140642040,-153.0,0.00019408,2]
[388383741,1759140642050,-153.0,0.00019409,2]
[388383743,1759140642060,-153.0,0.00019409,2]
[388383745,1759140642071,-153.0,0.00019409,2]
[388383747,1759140642081,-153.0,0.00019409,2]
[388383749,1759140642091,-153.0,0.00019409,2]
[388383752,1759140642102,-153.0,0.00019409,2]
[388383754,1759140642112,-153.0,0.00019409,2]
[388383756,1759140642123,-153.0,0.00019409,2]
[388383758,1759140642133,-153.0,0.00019409,2]
[388383760,1759140642143,-153.0,0.00019409,2]
[388383762,1759140642153,-153.0,0.00019409,2]
[388383764,1759140642163,-153.0,0.00019409,2]
[388383766,1759140642174,-153.0,0.00019409,2]
[388383768,1759140642185,-153.0,0.00019409,2]
[388383771,1759140642200,-153.0,0.00019409,2]
[388383773,1759140642211,-153.0,0.00019409,2]
[388383775,1759140642221,-153.0,0.00019409,2]
[388383777,1759140642231,-153.0,0.00019409,2]
[388383779,1759140642243,-153.0,0.00019409,2]
[388383781,1759140642253,-153.0,0.00019409,2]
[388383783,1759140642265,-153.0,0.00019409,2]
[388383785,1759140642275,-153.0,0.00019409,2]
[388383787,1759140642287,-153.0,0.00019409,2]
[388383789,1759140642297,-961.0,0.00019417,2]
[388383791,1759140642307,-500.0,0.00019417,2]
[388383794,1759140642324,-1496.20792433,0.00019425,2]
[388383796,1759140642335,-253.66754595,0.00019428,7]
[388383799,1759140642346,-647.0,0.00019428,7]
[388383801,1759140642357,-500.0,0.00019428,7]
[388383803,1759140642367,-255.29487301,0.00019428,2]
[388383805,1759140642378,-218.0,0.00019428,7]
[388383807,1759140642388,-500.0,0.00019428,7]
[388383809,1759140642399,-500.0,0.00019428,7]
[388383810,1759140642410,-150.0,0.00019428,7]
[388383811,1759140642420,-500.0,0.00019428,2]
[388383812,1759140642431,-2699.0,0.00019428,7]
[388383813,1759140642442,-500.0,0.00019428,2]
[388383816,1759140642453,-151.0,0.00019428,2]
[388383818,1759140642464,-151.0,0.00019428,2]
[388383820,1759140642474,-191.85664,0.00019428,2]
[388383822,1759140642485,-167.335364,0.00019428,2]
[388383824,1759140642495,-151.0,0.00019428,2]
[388383826,1759140642506,-151.944406,0.00019428,2]
[388383828,1759140642516,-152.0,0.00019428,2]
[388383831,1759140642527,-152.0,0.00019428,2]
[388383833,1759140642539,-1567.22735624,0.00019436,2]
[388383835,1759140642550,-150.0,0.00019439,2]
[388383837,1759140642560,-500.0,0.00019439,2]
[388383839,1759140642571,-500.0,0.00019439,2]
[388383841,1759140642582,-500.0,0.00019439,2]
[388383844,1759140642593,-150.0,0.00019439,2]
[388383846,1759140642604,-248.323178,0.00019439,2]
[388383848,1759140642615,-151.0,0.00019439,2]
[388383850,1759140642625,-151.0,0.00019439,2]
[388383852,1759140642636,-151.0,0.00019439,2]
[388383854,1759140642646,-481.0,0.00019452,7]
[388383856,1759140642657,-3177.57150812,0.00019458,2]
[388383858,1759140642668,-267.38271758,0.00019461,6]
[388383861,1759140642678,-154.3773668,0.00019465,2]
[388383863,1759140642688,-646.75093245,0.00019474,2]
[388383865,1759140642704,-248.71531821,0.0001949,2]
[388383868,1759140642715,-598.18,0.00019491,2]
[388383870,1759140642725,-700.0,0.000195,7]
[388383872,1759140642736,-71386.4816317,0.00019503,2]
[388383906,1759140644371,-1915.86727358,0.00019503,2]
[388383907,1759140644386,-550.0,0.00019503,2]
[388383908,1759140644403,-3088.0,0.00019428,7]
[388383909,1759140644414,-2891.488,0.00019503,2]
[388383910,1759140644431,-1371.10347681,0.00019503,2]
[388383911,1759140644444,-125967.13364895,0.00019503,2]
[388383912,1759140644455,-151.0,0.00019503,2]
[388383913,1759140644465,-154.195684,0.00019503,2]
[388383914,1759140644476,-1496.20792433,0.00019507,2]
[388383915,1759140644486,-334.5472959,0.00019511,2]
[388383916,1759140644496,-3177.57150812,0.00019513,2]
[388383917,1759140644507,-154.3773668,0.00019527,2]
[388383918,1759140644516,-1567.22735624,0.00019529,2]
[388383919,1759140644526,-420.0,0.00019533,2]
[388383920,1759140644536,-168.0,0.00019536,2]
[388383921,1759140644546,-646.75093245,0.00019545,2]
[388383922,1759140644556,-1496.20792433,0.00019562,2]
[388383923,1759140644567,-200.0,0.00019562,2]
[388383924,1759140644577,-200.0,0.00019562,2]
[388383925,1759140644587,-3177.57150812,0.00019569,2]
[388383926,1759140644597,-228.76302109,0.00019573,2]
[388383927,1759140644606,-154.3773668,0.00019589,2]
[388383928,1759140644616,-1000.0,0.00019591,2]
[388383929,1759140644626,-300.0,0.00019597,2]
[388383930,1759140644636,-700.0,0.000196,7]
[388383931,1759140644646,-300.0,0.000196,2]
[388383932,1759140644657,-151.0,0.00019601,2]
[388383933,1759140644673,-201.602243,0.00019601,2]
[388383934,1759140644683,-201.602243,0.00019601,2]
[388383935,1759140644694,-201.602243,0.00019601,2]
[388383936,1759140644705,-201.602243,0.00019601,2]
[388383937,1759140644717,-253.058051,0.00019601,2]
[388383938,1759140644729,-151.0,0.00019601,2]
[388383939,1759140644740,-151.0,0.00019601,2]
[388383940,1759140644751,-150.0,0.00019606,4]
[388383941,1759140644762,-1567.22735624,0.00019622,2]
[388383942,1759140644772,-305.28586926,0.00019623,2]
[388383943,1759140644783,-3177.57150812,0.00019624,2]
[388383944,1759140644793,-1680.0,0.00019629,2]
[388383945,1759140644804,-173.9,0.0001963,2]
[388383946,1759140644815,-169.24494897,0.0001964,2]
[388383947,1759140644825,-666.0,0.0001964,2]
[388383948,1759140644835,-1496.20792433,0.00019644,2]
[388383949,1759140644846,-154.3773668,0.00019652,2]
[388383950,1759140644856,-168.0,0.00019679,2]
[388383951,1759140644867,-3177.57150812,0.00019679,2]
[388383952,1759140644877,-210.0,0.0001968,2]
[388383953,1759140644887,-666.0,0.00019683,2]
[388383954,1759140644898,-168.0,0.00019689,2]
[388383955,1759140644908,-700.0,0.000197,7]
[388383956,1759140644919,-1000.0,0.000197,2]
[388383957,1759140644929,-961.0,0.000197,2]
[388383958,1759140644940,-1000.0,0.00019701,2]
[388383959,1759140644950,-647.0,0.00019702,7]
[388383960,1759140644961,-500.0,0.00019702,7]
[388383961,1759140644972,-500.0,0.00019702,7]
[388383962,1759140644982,-500.0,0.00019702,7]
[388383963,1759140644993,-150.0,0.00019702,7]
[388383964,1759140645004,-500.0,0.00019702,2]
[388383965,1759140645015,-2699.0,0.00019702,7]
[388383966,1759140645025,-500.0,0.00019702,2]
[388383967,1759140645036,-200.00000021,0.00019713,2]
[388383968,1759140645046,-460.20822588,0.00019713,2]
[388383969,1759140645057,-613.16596995,0.00019713,2]
[388383970,1759140645068,-385.17556478,0.00019713,2]
[388383971,1759140645078,-150.0,0.00019713,2]
[388383972,1759140645089,-154.3773668,0.00019714,2]
[388383973,1759140645099,-1567.22735624,0.00019714,2]
[388383974,1759140645109,-481.0,0.00019726,7]
[388383975,1759140645120,-5637.62,0.00019726,2]
[388383976,1759140645130,-1496.20792433,0.00019726,2]
[388383977,1759140645140,-156.587,0.00019726,2]
[388383978,1759140645150,-3177.57150812,0.00019734,2]
[388383979,1759140645160,-267.38271758,0.00019753,7]
[388383980,1759140645170,-200.0,0.00019758,2]
[388383981,1759140645180,-187.69097208,0.00019758,2]
[388383982,1759140645191,-1000.0,0.00019766,2]
[388383983,1759140645204,-1000.0,0.00019766,2]
[388383984,1759140645214,-500.0,0.00019766,2]
[388383985,1759140645225,-154.3773668,0.00019776,2]
[388383986,1759140645235,-5000.0,0.0001978,2]
[388383987,1759140645246,-683.5565566,0.0001978,2]
[388383988,1759140645256,-180.32256458,0.0001978,2]
[388383989,1759140645266,-187.23860637,0.0001978,2]
[388383990,1759140645279,-168.0,0.00019788,2]
[388383991,1759140645296,-3177.57150812,0.0001979,2]
[388383992,1759140645306,-683.55655654,0.000198,2]
[388383993,1759140645317,-700.0,0.000198,7]
[388383994,1759140645327,-723.08845536,0.000198,2]
[388383995,1759140645338,-1567.22735624,0.00019807,2]
[388383996,1759140645348,-1496.20792433,0.00019808,2]
[388383997,1759140645358,-683.55655654,0.0001982,2]
[388383998,1759140645369,-11842.71865824,0.00019835,2]
[388383999,1759140645379,-154.3773668,0.00019838,2]
[388384000,1759140645390,-683.55655654,0.0001984,2]
[388384001,1759140645401,-3177.57150812,0.00019845,2]
[388384002,1759140645411,-1000.0,0.00019848,2]
[388384003,1759140645422,-151.0,0.00019848,2]
[388384004,1759140645433,-201.602243,0.00019848,2]
[388384005,1759140645444,-201.602243,0.00019848,2]
[388384006,1759140645455,-201.602243,0.00019848,2]
[388384007,1759140645466,-201.602243,0.00019848,2]
[388384008,1759140645476,-723.08845534,0.0001985,2]
[388384009,1759140645487,-683.55655654,0.0001986,2]
[388384010,1759140645498,-1200.54478261,0.0001987,2]
[388384011,1759140645509,-1000.0,0.0001987,2]
[388384012,1759140645519,-1000.0,0.0001987,2]
[388384013,1759140645530,-527.81614597,0.0001987,2]
[388384014,1759140645541,-999.99,0.00019877,2]
[388384015,1759140645551,-492.65372537,0.00019879,2]
[388384016,1759140645833,-477.66009156,0.00017384,2]
[388384017,1759140645846,-557.91900844,0.00017384,2]
[388384018,1759140645856,-3088.0,0.00019702,7]
[388384019,1759140645866,-173.34627463,0.00019879,2]
[388384020,1759140645877,-677.33712987,0.00019879,2]
[388384021,1759140645887,-300.0,0.00019879,2]
[388384022,1759140645897,-10000.0,0.00019879,2]
[388384023,1759140645907,-300.0,0.00019879,2]
[388384024,1759140645918,-3000.0,0.00019879,2]
[388384025,1759140645927,-518938.64790719,0.0001988,2]
[388384026,1759140645938,-42291.6097164,0.0001988,2]
[388384027,1759140645948,-2590.05683469,0.0001988,2]
[388384028,1759140645960,-151.0,0.0001988,2]
[388384029,1759140645971,-201.602243,0.0001988,2]
[388384030,1759140645981,-201.602243,0.0001988,2]
[388384031,1759140645991,-201.602243,0.0001988,2]
[388384032,1759140646001,-201.602243,0.0001988,2]
[388384033,1759140646012,-201.602243,0.0001988,2]
[388384035,1759140646022,-201.602243,0.0001988,2]
[388384036,1759140646033,-201.602243,0.0001988,2]
[388384037,1759140646043,-201.602243,0.0001988,2]
[388384038,1759140646055,-683.55655654,0.0001988,2]
[388384039,1759140646065,-206.13195001,0.0001988,2]
[388384040,1759140646075,-5000.0,0.00019886,2]
[388384041,1759140646085,-168.0,0.00019889,2]
[388384042,1759140646095,-326.38741006,0.0001989,2]
[388384043,1759140646104,-237.66747407,0.0001989,4]
[388384044,1759140646115,-171.4889726,0.0001989,4]
[388384045,1759140646125,-185.81247222,0.0001989,4]
[388384046,1759140646135,-155.44787524,0.0001989,4]
[388384047,1759140646145,-150.0,0.0001989,4]
[388384048,1759140646156,-150.0,0.0001989,4]
[388384049,1759140646166,-150.0,0.0001989,4]
[388384050,1759140646176,-158.95919771,0.0001989,4]
[388384052,1759140646189,-283.88058946,0.0001989,4]
[388384055,1759140646204,-150.0,0.0001989,4]
[388384056,1759140646214,-150.0,0.0001989,4]
[388384057,1759140646224,-1496.20792433,0.0001989,2]
[388384058,1759140646235,-666.0,0.00019899,2]
[388384059,1759140646246,-300.0,0.00019899,2]
[388384060,1759140646256,-29391.65152144,0.000199,2]
[388384061,1759140646267,-807691.60625092,0.000199,2]
[388384062,1759140646278,-272835.99891025,0.000199,2]
[388384063,1759140646698,-154.58100945,0.00019503,2]
[388384064,1759140646708,-179.12408517,0.00019503,2]
[388384065,1759140646719,-26.6910658,0.00019616,2]
[388384066,1759140725492,-180.63384631,0.000168,2]
[388384067,1759141112627,156.01,9.249e-05,2]
[388384068,1759141178672,347.35709705,0.0001,2]
[388384077,1759141670734,2200.156038,0.00013,15]
[388384084,1759141714143,820.49126729,0.0001421,7]
[388384110,1759141831421,-200.0,0.00015124,2]
[388384113,1759141831432,-163.87,0.00016,2]
[388384115,1759141831442,-250.0,0.00016636,2]
[388384117,1759141831452,-162.32,0.00016712,2]
[388384119,1759141831462,-319.36615369,0.000168,2]
[388384121,1759141831472,-250.0,0.00017,2]
[388384123,1759141831482,-114.06202896,0.00017074,2]
[388384125,1759141831494,-280.52238197,0.00017074,2]
[388384127,1759141831503,-3831.6037456,0.00017075,2]
[388384129,1759141831514,-152.0,0.00017598,3]
[388384131,1759141831524,-344.0,0.000177,3]
[388384133,1759141831534,-474.44399431,0.00017897,2]
[388384135,1759141831543,-300.0,0.00017999,2]
[388384136,1759141831553,-300.0,0.00017999,2]
[388384137,1759141831563,-1200.0,0.00017999,2]
[388384138,1759141831573,-300.0,0.00017999,2]
[388384139,1759141831583,-1074.73678383,0.00018,12]
[388384140,1759141831592,-150.0,0.00018,2]
[388384141,1759141831602,-150.0,0.00018,2]
[388384142,1759141831611,-150.0,0.00018,2]
[388384143,1759141831621,-150.0,0.00018,2]
[388384144,1759141831630,-150.0,0.00018,2]
[388384145,1759141831640,-150.0,0.00018,2]
[388384146,1759141831650,-150.0,0.00018,2]
[388384147,1759141831659,-150.0,0.00018,2]
[388384148,1759141831668,-150.0,0.00018,2]
[388384149,1759141831678,-150.0,0.00018,2]
[388384150,1759141831688,-150.0,0.00018,2]
[388384151,1759141831697,-150.0,0.00018,2]
[388384152,1759141831707,-150.0,0.00018,2]
[388384153,1759141831716,-5514.0,0.000181,5]
[388384154,1759141831726,-200.0,0.00018146,2]
[388384155,1759141831735,-201.93286099,0.00018174,2]
[388384156,1759141831745,-9000.0,0.00018174,2]
[388384158,1759141831754,-7965.41053268,0.00018174,2]
[388384160,1759141831764,-239.84119403,0.00018174,2]
[388384162,1759141831773,-1024.9,0.00018238,2]
[388384164,1759141831783,-225.0,0.000183,2]
[388384166,1759141831793,-250.0,0.00018304,2]
[388384168,1759141831803,-1852.42,0.0001831,2]
[388384170,1759141831813,-150.0,0.00018333,2]
[388384172,1759141831823,-2792.66,0.00018338,2]
[388384175,1759141831832,-150.0,0.000184,2]
[388384177,1759141831843,-474.18,0.00018449,2]
[388384179,1759141831852,-666.0,0.0001846,3]
[388384181,1759141831862,-200.0,0.00018529,2]
[388384183,1759141831871,-158.26,0.00018577,2]
[388384185,1759141831881,-186.46,0.00018598,2]
[388384187,1759141831891,-300.0,0.00018651,2]
[388384189,1759141831901,-150.0,0.00018667,2]
[388384191,1759141831910,-150.0,0.00018667,2]
[388384192,1759141831920,-150.0,0.00018667,2]
[388384193,1759141831930,-1000.0,0.00018717,2]
[388384194,1759141831940,-9000.0,0.00018722,2]
[388384195,1759141831950,-179.56,0.00018774,2]
[388384196,1759141831959,-300.0,0.00018788,2]
[388384197,1759141831970,-150.0,0.000188,2]
[388384198,1759141831979,-500.0,0.00018825,2]
[388384199,1759141831988,-500.0,0.00018825,2]
[388384200,1759141831998,-180.63384631,0.00018825,2]
[388384201,1759141832008,-500.0,0.000189,2]
[388384202,1759141832017,-500.0,0.000189,2]
[388384203,1759141832027,-2000.0,0.000189,2]
[388384204,1759141832037,-150.0,0.00019,2]
[388384205,1759141832047,-150.0,0.00019,2]
[388384206,1759141832057,-150.0,0.00019,2]
[388384207,1759141832067,-300.0,0.00019,6]
[388384208,1759141832077,-695.39793187,0.00019089,2]
[388384209,1759141832087,-200.0,0.00019089,2]
[388384210,1759141832098,-160.0,0.00019089,2]
[388384211,1759141832108,-322.6107,0.00019089,2]
[388384212,1759141832118,-500.0,0.00019089,2]
[388384213,1759141832127,-500.0,0.00019089,2]
[388384214,1759141832137,-500.0,0.00019089,2]
[388384215,1759141832147,-500.0,0.00019089,2]
[388384216,1759141832157,-500.0,0.00019089,2]
[388384217,1759141832166,-500.0,0.00019089,2]
[388384218,1759141832176,-500.0,0.00019089,2]
[388384219,1759141832185,-500.0,0.00019089,2]
[388384220,1759141832195,-500.0,0.00019089,2]
[388384221,1759141832205,-500.0,0.00019089,2]
[388384222,1759141832214,-500.0,0.00019089,2]
[388384223,1759141832224,-500.0,0.00019089,2]
[388384224,1759141832234,-500.0,0.00019089,2]
[388384225,1759141832243,-500.0,0.00019089,2]
[388384226,1759141832252,-500.0,0.00019089,2]
[388384227,1759141832262,-500.0,0.00019089,2]
[388384228,1759141832272,-500.0,0.00019089,2]
[388384229,1759141832282,-500.0,0.00019089,2]
[388384230,1759141832292,-500.0,0.00019089,2]
[388384231,1759141832301,-151.0,0.00019089,2]
[388384232,1759141832311,-500.0,0.00019089,2]
[388384233,1759141832320,-398.36093648,0.00019089,2]
[388384234,1759141832330,-151.0,0.00019089,2]
[388384235,1759141832339,-151.26354203,0.00019089,2]
[388384236,1759141832349,-200.0,0.00019089,2]
[388384237,1759141832358,-200.0,0.00019089,2]
[388384238,1759141832368,-200.0,0.00019089,2]
[388384239,1759141832378,-200.0,0.00019089,2]
[388384240,1759141832387,-200.0,0.00019089,2]
[388384241,1759141832397,-200.0,0.00019089,2]
[388384242,1759141832407,-200.0,0.00019089,2]
[388384243,1759141832416,-200.0,0.00019089,2]
[388384244,1759141832426,-200.0,0.00019089,2]
[388384245,1759141832436,-200.0,0.00019089,2]
[388384246,1759141832445,-200.0,0.00019089,2]
[388384247,1759141832456,-200.0,0.00019089,2]
[388384248,1759141832466,-200.0,0.00019089,2]
[388384249,1759141832476,-25127.1764,0.000191,2]
[388384250,1759141832485,-600.0,0.000191,6]
[388384251,1759141832496,-500.0,0.00019125,2]
[388384252,1759141832505,-500.0,0.00019125,2]
[388384253,1759141832515,-500.0,0.00019125,2]
[388384254,1759141832525,-2500.0,0.00019152,3]
[388384255,1759141832538,-2500.0,0.0001916,3]
[388384256,1759141832548,-2500.0,0.00019169,3]
[388384257,1759141832558,-6082.07440859,0.00019177,2]
[388384258,1759141832568,-186.03711856,0.00019178,2]
[388384259,1759141832579,-2500.0,0.00019178,3]
[388384260,1759141832588,-151.0,0.00019178,2]
[388384261,1759141832598,-150.0,0.000192,4]
[388384262,1759141832608,-900.0,0.000192,7]
[388384263,1759141832617,-1200.0,0.000193,7]
[388384264,1759141832626,-2053.627,0.00019319,2]
[388384265,1759141832636,-171.662,0.00019319,2]
[388384266,1759141832646,-150.0,0.00019333,4]
[388384267,1759141832655,-150.0,0.00019333,4]
[388384268,1759141832664,-150.0,0.00019333,4]
[388384269,1759141832674,-1000.0,0.00019373,2]
[388384270,1759141832684,-1500.0,0.000194,7]
[388384271,1759141832694,-5605.3712,0.00019403,2]
[388384272,1759141832704,-1000.0,0.00019448,2]
[388384273,1759141832713,-1000.0,0.00019448,2]
[388384274,1759141832723,-168.0,0.0001946,2]
[388384275,1759141832732,-168.0,0.00019477,2]
[388384276,1759141832743,-221.0,0.0001948,2]
[388384277,1759141832752,-1000.0,0.00019499,2]
[388384278,1759141832762,-786.0,0.000195,2]
[388384279,1759141832772,-300.0,0.000195,7]
[388384280,1759141832782,-243.0,0.000195,2]
[388384281,1759141832791,-1000.0,0.000195,2]
[388384282,1759141832800,-385.0,0.000195,2]
[388384283,1759141832811,-186.46,0.00019528,2]
[388384284,1759141832821,-248.71531821,0.00019543,2]
[388384285,1759141832831,-2802.17334068,0.00019596,2]
[388384286,1759141832843,-150.0,0.000196,4]
[388384287,1759141832854,-300.0,0.000196,7]
[388384288,1759141832866,-150.0,0.00019622,2]
[388384289,1759141832876,-520.85127511,0.00019626,2]
[388384290,1759141832887,-150.0,0.00019628,2]
[388384291,1759141832896,-2802.17334063,0.0001963,2]
[388384292,1759141832906,-150.0,0.0001963,2]
[388384293,1759141832916,-1425.0,0.00019633,2]
[388384294,1759141832926,-150.0,0.00019634,2]
[388384295,1759141832935,-420.0,0.00019639,2]
[388384296,1759141832945,-317.0,0.00019639,2]
[388384297,1759141832954,-1425.0,0.00019654,2]
[388384298,1759141832964,-1425.0,0.00019655,2]
[388384299,1759141832974,-2802.17334063,0.00019664,2]
[388384300,1759141832985,-150.0,0.00019665,2]
[388384301,1759141832996,-150.0,0.00019667,4]
[388384302,1759141833006,-1425.0,0.00019667,2]
[388384303,1759141833016,-1000.0,0.0001967,2]
[388384304,1759141833025,-500.0,0.00019673,2]
[388384305,1759141833035,-1000.0,0.00019673,2]
[388384306,1759141833044,-150.0,0.00019673,2]
[388384307,1759141833054,-1425.0,0.00019679,2]
[388384308,1759141833064,-150.0,0.00019683,2]
[388384309,1759141833076,-150.0,0.00019695,2]
[388384310,1759141833086,-1179.0,0.00019696,2]
[388384311,1759141833096,-899.0,0.00019696,2]
[388384312,1759141833106,-3164.25762082,0.00019696,2]
[388384313,1759141833120,-1068.74237918,0.00019696,2]
[388384314,1759141833130,-6229.0,0.00019696,2]
[388384315,1759141833141,-4179.0,0.00019696,2]
[388384316,1759141833510,-727.0,0.00019696,2]
[388384317,1759141833537,-1000.0,0.00019697,2]
[388384318,1759141833547,-2113.2555343,0.00019697,2]
[388384319,1759141833560,-688.91780633,0.00019697,2]
[388384320,1759141833570,-4.18680123,0.000197,2]
[388384321,1759141833585,-995.81319877,0.000197,2]
[388384322,1759141833595,-300.0,0.000197,7]
[388384323,1759141833604,-1271.39306,0.000197,2]
[388384324,1759141833614,-1425.0,0.00019701,2]
[388384325,1759141833624,-1425.0,0.00019702,2]
[388384326,1759141833634,-150.0,0.00019705,2]
[388384327,1759141833644,-1425.0,0.00019709,2]
[388384328,1759141833653,-1000.0,0.0001971,2]
[388384329,1759141833663,-1425.0,0.00019712,2]
[388384330,1759141833672,-1425.0,0.00019716,2]
[388384331,1759141833682,-1000.0,0.0001972,2]
[388384332,1759141833691,-1000.0,0.00019725,2]
[388384333,1759141833701,-447.0,0.00019726,7]
[388384334,1759141833710,-150.0,0.00019726,7]
[388384335,1759141833719,-500.0,0.00019726,2]
[388384336,1759141833729,-2361.0,0.00019726,7]
[388384337,1759141833739,-608.0,0.00019726,7]
[388384338,1759141833749,-150.0,0.00019726,7]
[388384339,1759141833758,-150.0,0.00019726,7]
[388384340,1759141833768,-500.0,0.00019726,7]
[388384341,1759141833777,-421.0,0.00019726,7]
[388384342,1759141833786,-500.0,0.00019726,2]
[388384343,1759141833795,-150.0,0.00019726,7]
[388384344,1759141833805,-2364.0,0.00019726,7]
[388384345,1759141833815,-150.0,0.00019726,7]
[388384346,1759141833824,-500.0,0.00019726,7]
[388384347,1759141833835,-500.0,0.00019726,7]
[388384348,1759141833844,-150.0,0.00019726,7]
[388384349,1759141833856,-500.0,0.00019726,2]
[388384350,1759141833866,-150.0,0.00019726,2]